{"text_format":"3","workbook":"xlsx","n_sheets":1,"sheets":["Укрупнено по профессиям"],"read":"whole","date_system":"1900"}

{"sheet":"Укрупнено по профессиям","index":0,"n_rows":34,"n_cols":46,"rows_kept":34,"merged":[[0,1,0,45],[11,1,11,45],[19,1,19,45]]}
[null,"Информация по трудоустройству 2024-2025 учебный год                                                                                                                                                                                                                                                                                                                                                                                                                        ГАПОУ \"КНН  им. Н.В. Лемаева\" \n"]
[null,"Наименование профессии, специальности","Выпуск 2025 год","ПАО \"НКНХ\" ","АО «ТАНЕКО ","АО «ТАИФ-НК»","ТЦ","НШЗ","татавтодор","предприятие общественного питания","ОАЗ (Алабуга)","пожарная часть ","ООО КМУ Двигатель","ООО Новатор","Ремдизель","Техно граф","КАМАЗ","ТЭЦ-1","ТЭЦ 2","МЧС","ООО ЛАРС","ТАТНЕФТЬ АЗС","ПВЗ","МАУ ЦКИ БАЗА","ООО БИКОТЕКС","ООО Наладчик","ООО Нойл","Аграс Энерго сервис","Агрораздолье","АО Елабужское предприятие тепловых сетей","самозанятый","Финансово-юридический центр","Казанский авиастроительный завод","МАУ ИЦ","Нефтехимик","ООО Завод Эластик","ООО Кама пром строй","ООО Синтегра","ООО Энергосила","инвалид","несовершеннолетний","декрет","ВС","ВУЗ","Переезд","Не трудоустроены"]
[null,"Отделение автоматизации и управления"]
[null,"Слесарь по контрольно-измерительным приборам и автоматике",{"$nulls":43},{"$f":"SUM(U4:AS4)","v":0}]
[null,"Слесарь по контрольно-измерительным приборам и автоматике",{"$nulls":43},0]
[null,"Слесарь по контрольно-измерительным приборам и автоматике",{"$nulls":43},0]
[null,"Автоматизация технологических процессов и производств (по отраслям)",{"$nulls":43},0]
[null,"Автоматизация технологических процессов и производств (по отраслям)",{"$nulls":43},0]
[null,"Автоматизация технологических процессов и производств (по отраслям)",{"$nulls":43},0]
[null,"Информационные системы (по отраслям)",{"$nulls":43},0]
[null,"ИТОГО  отделение автоматизации и управления:",{"$nulls":39},{"$f":"SUM(AP4:AP10)","v":0},{"$f":"SUM(AQ4:AQ10)","v":0},null,{"$f":"SUM(AS4:AS10)","v":0},{"$f":"SUM(AT4:AT10)","v":0}]
[null,"Технологическое отделение"]
[null,"Химическая технология органических веществ",{"$nulls":43},{"$f":"SUM(U13:AS13)","v":0}]
[null,"Химическая технология органических веществ",{"$nulls":43},0]
[null,"Химическая технология органических веществ",{"$nulls":43},0]
[null,"Химическая технология органических веществ",{"$nulls":43},0]
[null,"Технология производства и переработки пластических масс и эластомеров",{"$nulls":43},0]
[null,"Переработка нефти и газа",{"$nulls":43},0]
[null,"ИТОГО технологическое отделение:",{"$nulls":39},{"$f":"SUM(AP13:AP18)","v":0},0,null,0,0]
[]
[1,"Мастер слесарных работ ",38,20,2,1,3,1,{"$nulls":33},0,5,5,1,0]
[2,"Сварщик (ручной и частично механизированной сварки (наплавки))",49,13,3,null,1,null,1,1,6,1,1,1,1,{"$nulls":27},10,5,5,0]
[3,"Машинист технологических насосов и компрессоров",111,65,10,3,2,null,null,2,null,1,{"$nulls":28},5,null,10,10,3,0]
[4,"Монтаж и техническая эксплуатация промышленного оборудования (по отраслям)        ",32,9,12,{"$nulls":5},1,{"$nulls":7},1,{"$nulls":23},5,4,null,0]
[5,"Лаборант",22,12,2,{"$nulls":36},1,{"$nulls":3},0]
[6,"ХТОВ",45,21,{"$nulls":38},14,10,null,0]
[7,"Пернеработка нефти и газа",24,4,4,{"$nulls":37},8,8,null,0]
[8,"Оператор нефтепереработки",25,null,8,{"$nulls":4},1,{"$nulls":32},12,4,null,0]
[9,"Аппаратчик оператор- производства химических соединений",232,121,null,null,2,1,null,null,10,1,{"$nulls":7},1,1,1,{"$nulls":8},3,{"$nulls":8}," ",14,10,54,28,3,0]
[10,"Слесарь по контрольно-измерительным приборам и автоматике",98,27,4,2,2,1,null,4,4,{"$nulls":4},1,1,{"$nulls":5},2,null,2,null,1,null,1,2,{"$nulls":10},6,null,17,17,4,0]
[11,"Техническая эксплуатация и обслуживание электрического и электромеханического оборудования (по отраслям)",48,25,4,1,{"$nulls":4},1,{"$nulls":6},1,{"$nulls":5},1,null,2,null,1,{"$nulls":14},11,null,1,0]
[12,"Электромонтер по ремонту и обслуживанию электрооборудования (по отраслям)",49,18,11,2,1,1,null,1,{"$nulls":12},2,{"$nulls":17},4,null,9,null,null,0]
[13,"Информационные системы и программирование",46,4,null,null,2,{"$nulls":3},7,1,{"$nulls":19},1,1,1,1,1,1,1,5,{"$nulls":3},11,19,null,0]
[null,"                        ИТОГО:",{"$f":"SUM(C21:C33)","v":819},{"$f":"SUM(D21:D33)","v":339},60,9,13,4,1,9,29,4,1,1,1,{"$nulls":3},1,1,1,1,{"$nulls":7},2,3,{"$nulls":8},0,null,11,166,110,17,0]